fUST/lending_fUST_20250930
["ID","MTS","AMOUNT","RATE_DAILY","PERIOD"]
[388462613,1759179046537,-480.0,0.00022523,2]
[388462614,1759179046547,-480.0,0.00022523,2]
[388462615,1759179046556,-480.0,0.00022523,2]
[388462616,1759179046568,-480.0,0.00022523,2]
[388462617,1759179046578,-480.0,0.00022523,2]
[388462618,1759179046587,-480.0,0.00022523,2]
[388462619,1759179046597,-526.13,0.00022523,2]
[388462620,1759179046607,-480.0,0.00022523,2]
[388462621,1759179046617,-480.0,0.00022523,2]
[388462622,1759179046627,-480.0,0.00022523,2]
[388462623,1759179046637,-480.0,0.00022523,2]
[388462624,1759179046646,-480.0,0.00022523,2]
[388462625,1759179046656,-480.0,0.00022523,2]
[388462626,1759179046666,-480.0,0.00022523,2]
[388462627,1759179046675,-480.0,0.00022523,2]
[388462628,1759179046686,-480.0,0.00022523,2]
[388462629,1759179046696,-480.0,0.00022523,2]
[388462630,1759179046707,-480.0,0.00022523,2]
[388462631,1759179046717,-480.0,0.00022523,2]
[388462632,1759179046728,-1083.22,0.00022523,2]
[388462633,1759179046738,-480.0,0.00022523,2]
[388462634,1759179046748,-1048.0,0.00022523,2]
[388462635,1759179046757,-480.0,0.00022523,2]
[388462636,1759179046767,-480.0,0.00022523,2]
[388462637,1759179046776,-480.0,0.00022523,2]
[388462638,1759179046786,-480.0,0.00022523,2]
[388462639,1759179046796,-480.0,0.00022523,2]
[388462640,1759179046805,-1056.05,0.00022523,2]
[388462641,1759179046815,-766.76,0.00022523,2]
[388462642,1759179046826,-1966.72,0.00022523,2]
[388462643,1759179046836,-480.0,0.00022523,2]
[388462644,1759179046850,-480.0,0.00022523,2]
[388462645,1759179046862,-731.08,0.00022523,2]
[388462646,1759179046875,-480.0,0.00022523,2]
[388462647,1759179046887,-758.97,0.00022523,2]
[388462648,1759179046898,-561.85,0.00022523,2]
[388462649,1759179046908,-480.0,0.00022523,2]
[388462650,1759179046921,-895.39,0.00022523,2]
[388462651,1759179046933,-583.63,0.00022523,2]
[388462652,1759179046946,-480.0,0.00022523,2]
[388462653,1759179046959,-480.0,0.00022523,2]
[388462654,1759179046971,-724.49,0.00022523,2]
[388462655,1759179046983,-480.0,0.00022523,2]
[388462656,1759179046996,-322.84370101,0.00022523,2]
[388462657,1759179047011,-480.0,0.00022523,2]
[388462658,1759179047024,-944.07,0.00022523,2]
[388462659,1759179047035,-480.0,0.00022523,2]
[388462660,1759179047047,-609.39,0.00022523,2]
[388462661,1759179047060,-480.0,0.00022523,2]
[388462662,1759179047072,-1516.48,0.00022523,2]
[388462663,1759179047083,-480.0,0.00022523,2]
[388462664,1759179047097,-480.0,0.00022523,2]
[388462665,1759179047111,-480.0,0.00022523,2]
[388462666,1759179047123,-609.59,0.00022523,2]
[388462667,1759179047135,-480.0,0.00022523,2]
[388462668,1759179047147,-480.0,0.00022523,2]
[388462669,1759179047157,-480.0,0.00022523,2]
[388462670,1759179047170,-480.0,0.00022523,2]
[388462671,1759179047183,-480.0,0.00022523,2]
[388462672,1759179047195,-480.0,0.00022523,2]
[388462673,1759179047209,-508.74495492,0.00022523,2]
[388462674,1759179047223,-480.0,0.00022523,2]
[388462675,1759179047234,-480.0,0.00022523,2]
[388462676,1759179047247,-480.0,0.00022523,2]
[388462677,1759179047261,-480.0,0.00022523,2]
[388462678,1759179047274,-480.0,0.00022523,2]
[388462679,1759179047289,-537.09,0.00022523,2]
[388462680,1759179047300,-480.0,0.00022523,2]
[388462681,1759179047310,-586.7507266,0.00022523,2]
[388462682,1759179047320,-480.0,0.00022523,2]
[388462683,1759179047330,-480.0,0.00022523,2]
[388462684,1759179047341,-480.0,0.00022523,2]
[388462685,1759179047352,-480.0,0.00022523,2]
[388462686,1759179047365,-480.0,0.00022523,2]
[388462687,1759179047377,-480.0,0.00022523,2]
[388462688,1759179047387,-724.23,0.00022523,2]
[388462689,1759179047398,-480.0,0.00022523,2]
[388462690,1759179047409,-480.0,0.00022523,2]
[388462691,1759179047420,-480.0,0.00022523,2]
[388462692,1759179047433,-480.0,0.00022523,2]
[388462693,1759179047445,-480.0,0.00022523,2]
[388462694,1759179047455,-480.0,0.00022523,2]
[388462695,1759179047465,-722.74,0.00022523,2]
[388462696,1759179047475,-480.0,0.00022523,2]
[388462697,1759179047490,-599.3,0.00022523,2]
[388462698,1759179047501,-480.0,0.00022523,2]
[388462699,1759179047512,-461.18980399,0.00022523,2]
[388462700,1759179047522,-529.03,0.00022523,2]
[388462701,1759179047533,-480.0,0.00022523,2]
[388462702,1759179047543,-480.0,0.00022523,2]
[388462703,1759179047554,-751.71,0.00022523,2]
[388462704,1759179047565,-586.65,0.00022523,2]
[388462705,1759179047575,-480.0,0.00022523,2]
[388462706,1759179047585,-480.0,0.00022523,2]
[388462707,1759179047596,-1728.07,0.00022523,2]
[388462708,1759179047607,-480.0,0.00022523,2]
[388462709,1759179047618,-480.0,0.00022523,2]
[388462710,1759179047628,-480.0,0.00022523,2]
[388462711,1759179047639,-480.0,0.00022523,2]
[388462712,1759179047650,-584.92,0.00022523,2]
[388462713,1759179047660,-480.0,0.00022523,2]
[388462714,1759179047671,-1315.41,0.00022523,2]
[388462715,1759179047683,-480.0,0.00022523,2]
[388462716,1759179047694,-480.0,0.00022523,2]
[388462717,1759179047707,-480.0,0.00022523,2]
[388462718,1759179047718,-841.12,0.00022523,2]
[388462719,1759179047730,-848.91,0.00022523,2]
[388462720,1759179047742,-480.0,0.00022523,2]
[388462721,1759179047753,-480.0,0.00022523,2]
[388462722,1759179047765,-513.02901423,0.00022523,2]
[388462723,1759179047776,-480.0,0.00022523,2]
[388462724,1759179047787,-1030.93,0.00022523,2]
[388462725,1759179047798,-480.0,0.00022523,2]
[388462726,1759179047809,-480.0,0.00022523,2]
[388462727,1759179047820,-480.0,0.00022523,2]
[388462728,1759179047831,-916.28,0.00022523,2]
[388462729,1759179047841,-480.0,0.00022523,2]
[388462730,1759179047853,-480.0,0.00022523,2]
[388462732,1759179047863,-582.85,0.00022523,2]
[388462734,1759179047873,-306.82911773,0.00022523,2]
[388462735,1759179047883,-1105.71,0.00022523,2]
[388462737,1759179047894,-480.0,0.00022523,2]
[388462738,1759179047904,-480.0,0.00022523,2]
[388462739,1759179047914,-480.0,0.00022523,2]
[388462740,1759179047924,-1736.44,0.00022523,2]
[388462741,1759179047934,-480.0,0.00022523,2]
[388462742,1759179047945,-547.23,0.00022523,2]
[388462743,1759179047956,-480.0,0.00022523,2]
[388462744,1759179047967,-880.88,0.00022523,2]
[388462745,1759179047978,-618.12,0.00022523,2]
[388462746,1759179047988,-480.0,0.00022523,2]
[388462747,1759179047999,-480.0,0.00022523,2]
[388462748,1759179048011,-3798.07,0.00022523,2]
[388462749,1759179048021,-480.0,0.00022523,2]
[388462750,1759179048031,-480.0,0.00022523,2]
[388462751,1759179048043,-683.99,0.00022523,2]
[388462752,1759179048053,-480.0,0.00022523,2]
[388462753,1759179048064,-1505.12,0.00022523,2]
[388462754,1759179048075,-480.0,0.00022523,2]
[388462755,1759179048086,-480.0,0.00022523,2]
[388462756,1759179048098,-1825.13,0.00022523,2]
[388462757,1759179048109,-1313.11,0.00022523,2]
[388462758,1759179048119,-922.44,0.00022523,2]
[388462759,1759179048130,-480.0,0.00022523,2]
[388462760,1759179048141,-480.0,0.00022523,2]
[388462761,1759179048151,-3735.01,0.00022523,2]
[388462762,1759179048162,-1682.53,0.00022523,2]
[388462763,1759179048174,-747.09,0.00022523,2]
[388462764,1759179048186,-500.0,0.00022523,2]
[388462765,1759179048197,-480.0,0.00022523,2]
[388462766,1759179048208,-480.0,0.00022523,2]
[388462767,1759179048218,-990.49,0.00022523,2]
[388462768,1759179048229,-480.0,0.00022523,2]
[388462769,1759179048241,-480.0,0.00022523,2]
[388462770,1759179048254,-1110.75,0.00022523,2]
[388462771,1759179048266,-328.78798777,0.00022523,2]
[388462772,1759179048277,-731.36,0.00022523,2]
[388462773,1759179048288,-571.08,0.00022523,2]
[388462774,1759179048298,-537.75,0.00022523,2]
[388462775,1759179048310,-590.24,0.00022523,2]
[388462776,1759179048320,-500.0,0.00022524,2]
[388462777,1759179048332,-151.0,0.00022524,2]
[388462778,1759179048343,-151.0,0.00022524,2]
[388462779,1759179048353,-500.0,0.00022524,2]
[388462780,1759179048364,-151.0,0.00022524,2]
[388462781,1759179048375,-151.0,0.00022524,2]
[388462782,1759179048386,-500.0,0.00022524,2]
[388462783,1759179048397,-151.0,0.00022524,2]
[388462784,1759179048407,-500.0,0.00022524,2]
[388462785,1759179048418,-257.38650215,0.00022524,2]
[388462786,1759179048429,-151.0,0.00022524,2]
[388462787,1759179048442,-282.45836097,0.00022524,2]
[388462788,1759179048453,-151.0,0.00022524,2]
[388462789,1759179048464,-151.0,0.00022524,2]
[388462790,1759179048477,-151.0,0.00022524,2]
[388462791,1759179048492,-500.0,0.00022524,2]
[388462792,1759179048503,-500.0,0.00022524,2]
[388462793,1759179048513,-480.0,0.00022524,2]
[388462794,1759179048524,-480.0,0.00022524,2]
[388462795,1759179048535,-480.0,0.00022524,2]
[388462796,1759179048546,-552.057,0.00022531,2]
[388462797,1759179048557,-178.643,0.00022531,2]
[388462798,1759179048568,-500.0,0.00022573,2]
[388462799,1759179048578,-500.0,0.00022573,2]
[388462800,1759179048588,-500.0,0.00022573,2]
[388462801,1759179048599,-500.0,0.00022573,2]
[388462802,1759179048610,-500.0,0.00022573,2]
[388462803,1759179048620,-500.0,0.00022573,2]
[388462804,1759179048630,-500.0,0.00022573,2]
[388462805,1759179048641,-500.0,0.00022573,2]
[388462806,1759179048651,-347.0,0.00022582,2]
[388462807,1759179048661,-151.0,0.000226,6]
[388462808,1759179048672,-151.0,0.000226,9]
[388462809,1759179048682,-480.0,0.00022687,2]
[388462810,1759179048692,-480.0,0.00022687,2]
[388462811,1759179048702,-2800.29,0.00022687,2]
[388462812,1759179048714,-480.0,0.00022687,2]
[388462813,1759179048724,-480.0,0.00022687,2]
[388462814,1759179048735,-1030.87,0.00022687,2]
[388462815,1759179048746,-480.0,0.00022687,2]
[388462816,1759179048756,-480.0,0.00022687,2]
[388462817,1759179048767,-480.0,0.00022687,2]
[388462818,1759179048778,-480.0,0.00022694,2]
[388462819,1759179048791,-480.0,0.00022694,2]
[388462820,1759179048801,-480.0,0.00022694,2]
[388462821,1759179048811,-480.0,0.00022694,2]
[388462822,1759179048822,-480.0,0.00022694,2]
[388462823,1759179048833,-693.21,0.00022694,2]
[388462824,1759179048846,-1516.11,0.00022694,2]
[388462825,1759179048859,-2810.05,0.00022694,2]
[388462826,1759179048870,-688.92,0.00022694,2]
[388462827,1759179049178,-480.0,0.00022694,2]
[388462828,1759179049195,-480.0,0.00022694,2]
[388462829,1759179049206,-480.0,0.00022694,2]
[388462830,1759179049216,-500.0,0.00022695,2]
[388462831,1759179049228,-1716.0,0.00022695,2]
[388462832,1759179049237,-180.67429611,0.00022695,2]
[388462833,1759179049247,-500.0,0.00022695,2]
[388462834,1759179049257,-500.0,0.00022695,2]
[388462835,1759179049267,-480.0,0.00022695,2]
[388462836,1759179049276,-480.0,0.00022695,2]
[388462837,1759179049287,-517.80980078,0.00022695,2]
[388462838,1759179049295,-639.31,0.00022695,2]
[388462839,1759179049304,-600.60002348,0.00022695,2]
[388462840,1759179049313,-480.0,0.00022695,2]
[388462841,1759179049322,-480.0,0.00022695,2]
[388462842,1759179049330,-480.0,0.00022695,2]
[388462843,1759179049339,-480.0,0.00022695,2]
[388462844,1759179049348,-480.0,0.00022695,2]
[388462845,1759179049357,-480.0,0.00022695,2]
[388462846,1759179049366,-802.35,0.00022695,2]
[388462847,1759179049375,-480.0,0.00022695,2]
[388462848,1759179049384,-480.0,0.00022695,2]
[388462849,1759179049393,-480.0,0.00022695,2]
[388462850,1759179049404,-480.0,0.00022695,2]
[388462851,1759179049412,-1439.11,0.00022695,2]
[388462852,1759179049421,-480.0,0.00022695,2]
[388462853,1759179049431,-480.0,0.00022695,2]
[388462854,1759179049440,-1825.32,0.00022695,2]
[388462855,1759179049449,-480.0,0.00022695,2]
[388462856,1759179049459,-480.0,0.00022695,2]
[388462857,1759179049468,-480.0,0.00022695,2]
[388462858,1759179049477,-480.0,0.00022695,2]
[388462859,1759179049491,-480.0,0.00022695,2]
[388462860,1759179049499,-586.64,0.00022695,2]
[388462861,1759179049509,-480.0,0.00022695,2]
[388462862,1759179049518,-666.57,0.00022695,2]
[388462863,1759179049527,-480.0,0.00022695,2]
[388462864,1759179049537,-480.0,0.00022695,2]
[388462865,1759179049546,-480.0,0.00022695,2]
[388462866,1759179049555,-480.0,0.00022695,2]
[388462867,1759179049566,-480.0,0.00022695,2]
[388462868,1759179049575,-623.78,0.00022695,2]
[388462869,1759179049584,-408.69703234,0.00022695,2]
[388462870,1759179049593,-480.0,0.00022695,2]
[388462871,1759179049602,-489.72,0.00022695,2]
[388462872,1759179049611,-852.47,0.00022695,2]
[388462873,1759179049620,-480.0,0.00022695,2]
[388462874,1759179049629,-480.0,0.00022695,2]
[388462875,1759179049638,-480.0,0.00022695,2]
[388462876,1759179049647,-480.0,0.00022695,2]
[388462877,1759179049656,-1341.68,0.00022695,2]
[388462878,1759179049665,-480.0,0.00022695,2]
[388462879,1759179049674,-480.0,0.00022695,2]
[388462880,1759179049683,-480.0,0.00022695,2]
[388462881,1759179049692,-1727.56,0.00022695,2]
[388462882,1759179049701,-480.0,0.00022695,2]
[388462883,1759179049710,-480.0,0.00022695,2]
[388462884,1759179049719,-480.0,0.00022695,2]
[388462885,1759179049728,-480.0,0.00022695,2]
[388462886,1759179049738,-504.51,0.00022695,2]
[388462887,1759179049747,-480.0,0.00022695,2]
[388462888,1759179049756,-480.0,0.00022695,2]
[388462889,1759179049765,-521.95,0.00022695,2]
[388462890,1759179049774,-480.0,0.00022695,2]
[388462891,1759179049784,-480.0,0.00022695,2]
[388462892,1759179049793,-1149.13,0.00022695,2]
[388462893,1759179049802,-480.0,0.00022695,2]
[388462894,1759179049811,-480.0,0.00022695,2]
[388462895,1759179049821,-480.0,0.00022695,2]
[388462896,1759179049830,-1006.13,0.00022695,2]
[388462897,1759179049839,-480.0,0.00022695,2]
[388462898,1759179049849,-480.0,0.00022695,2]
[388462899,1759179049860,-480.0,0.00022695,2]
[388462900,1759179049870,-1755.91,0.00022695,2]
[388462901,1759179049880,-7286.17,0.00022695,2]
[388462902,1759179049890,-480.0,0.00022695,2]
[388462903,1759179049900,-1633.6,0.00022695,2]
[388462904,1759179049910,-480.0,0.00022695,2]
[388462905,1759179049920,-480.0,0.00022695,2]
[388462906,1759179049929,-2374.18,0.00022695,2]
[388462907,1759179049939,-480.83,0.00022695,2]
[388462908,1759179049948,-480.0,0.00022695,2]
[388462909,1759179049957,-480.0,0.00022695,2]
[388462910,1759179049966,-215.55251,0.00022695,2]
[388462911,1759179049975,-480.0,0.00022695,2]
[388462912,1759179049984,-480.0,0.00022695,2]
[388462913,1759179049993,-500.0,0.00022696,2]
[388462914,1759179050003,-178.94003019,0.00022696,2]
[388462915,1759179050012,-500.0,0.00022696,2]
[388462916,1759179050022,-500.0,0.00022696,2]
[388462917,1759179050032,-500.0,0.00022696,2]
[388462918,1759179050041,-500.0,0.00022696,2]
[388462919,1759179050051,-500.0,0.00022696,2]
[388462920,1759179050060,-500.0,0.00022697,2]
[388462921,1759179050071,-184.18464603,0.00022697,2]
[388462922,1759179050081,-151.0,0.00022697,2]
[388462923,1759179050092,-151.0,0.00022697,2]
[388462924,1759179050102,-500.0,0.00022697,2]
[388462925,1759179050113,-151.0,0.000227,9]
[388462926,1759179050122,-151.0,0.000227,10]
[388462927,1759179050132,-151.0,0.000227,10]
[388462928,1759179050142,-5368.30994572,0.000227,2]
[388462929,1759179050151,-500.0,0.00022773,2]
[388462930,1759179050161,-500.0,0.00022773,2]
[388462931,1759179050170,-400.0,0.00022773,2]
[388462932,1759179050179,-500.0,0.00022773,2]
[388462933,1759179050189,-500.0,0.00022773,2]
[388462934,1759179050198,-516.0459655,0.00022773,2]
[388462935,1759179050208,-500.0,0.00022773,2]
[388462936,1759179050217,-500.0,0.00022773,2]
[388462937,1759179050227,-500.0,0.00022773,2]
[388462938,1759179050237,-500.0,0.00022773,2]
[388462939,1759179050246,-500.0,0.00022773,2]
[388462940,1759179050255,-500.0,0.00022773,2]
[388462941,1759179050264,-500.0,0.00022773,2]
[388462942,1759179050274,-500.0,0.00022773,2]
[388462943,1759179050283,-500.0,0.00022773,2]
[388462944,1759179050291,-500.0,0.00022773,2]
[388462945,1759179050300,-500.0,0.00022773,2]
[388462946,1759179050309,-151.0,0.00022784,2]
[388462947,1759179050318,-480.0,0.00022797,2]
[388462948,1759179050327,-508.96,0.00022797,2]
[388462949,1759179050336,-480.0,0.00022797,2]
[388462950,1759179050345,-480.0,0.00022797,2]
[388462951,1759179050354,-480.0,0.00022797,2]
[388462952,1759179050363,-480.0,0.00022797,2]
[388462953,1759179050372,-480.0,0.00022797,2]
[388462954,1759179050381,-480.0,0.00022797,2]
[388462955,1759179050390,-518.99,0.00022797,2]
[388462956,1759179050399,-480.0,0.00022797,2]
[388462957,1759179050408,-480.0,0.00022797,2]
[388462958,1759179050418,-480.0,0.00022797,2]
[388462959,1759179050428,-558.16,0.00022797,2]
[388462960,1759179050436,-638.41,0.00022797,2]
[388462961,1759179050446,-480.0,0.00022797,2]
[388462962,1759179050455,-480.0,0.00022797,2]
[388462963,1759179050465,-480.0,0.00022797,2]
[388462964,1759179050475,-480.0,0.00022797,2]
[388462965,1759179050489,-480.0,0.00022797,2]
[388462966,1759179050499,-480.0,0.00022797,2]
[388462967,1759179050509,-480.0,0.00022797,2]
[388462968,1759179050518,-313.10081875,0.00022797,2]
[388462969,1759179050529,-480.0,0.00022797,2]
[388462970,1759179050538,-480.0,0.00022797,2]
[388462971,1759179050547,-922.82,0.00022797,2]
[388462972,1759179050557,-480.0,0.00022797,2]
[388462973,1759179050566,-480.0,0.00022797,2]
[388462974,1759179050576,-480.0,0.00022797,2]
[388462975,1759179050585,-480.0,0.00022797,2]
[388462976,1759179050595,-480.0,0.00022797,2]
[388462977,1759179050604,-480.0,0.00022797,2]
[388462978,1759179050613,-480.0,0.00022797,2]
[388462979,1759179050621,-480.0,0.00022797,2]
[388462980,1759179050631,-480.0,0.00022797,2]
[388462981,1759179050640,-480.0,0.00022797,2]
[388462982,1759179050648,-480.0,0.00022797,2]
[388462983,1759179050657,-210.20830448,0.00022797,2]
[388462984,1759179050666,-480.0,0.00022797,2]
[388462985,1759179050675,-480.0,0.00022797,2]
[388462986,1759179050684,-480.0,0.00022797,2]
[388462987,1759179050693,-480.0,0.00022797,2]
[388462988,1759179050702,-510.91,0.00022797,2]
[388462989,1759179050711,-480.0,0.00022797,2]
[388462990,1759179050721,-500.0,0.00022797,2]
[388462991,1759179050730,-580.09,0.00022797,2]
[388462992,1759179050739,-480.0,0.00022797,2]
[388462993,1759179050748,-480.0,0.00022797,2]
[388462994,1759179050757,-480.0,0.00022797,2]
[388462995,1759179050766,-480.0,0.00022797,2]
[388462996,1759179050776,-480.0,0.00022797,2]
[388462997,1759179050785,-480.0,0.00022797,2]
[388462998,1759179050795,-537.81,0.00022797,2]
[388462999,1759179050804,-480.0,0.00022797,2]
[388463000,1759179050814,-480.0,0.00022797,2]
[388463001,1759179050825,-480.0,0.00022797,2]
[388463002,1759179050835,-1632.63,0.00022797,2]
[388463003,1759179050844,-511.13,0.00022797,2]
[388463004,1759179050853,-504.89,0.00022797,2]
[388463005,1759179050863,-480.0,0.00022797,2]
[388463006,1759179050872,-977.37,0.00022797,2]
[388463007,1759179050881,-529.96,0.00022797,2]
[388463008,1759179050894,-480.0,0.00022797,2]
[388463009,1759179050903,-480.0,0.00022797,2]
[388463010,1759179050912,-438.51512859,0.00022797,2]
[388463011,1759179050921,-480.0,0.00022797,2]
[388463012,1759179050930,-480.0,0.00022797,2]
[388463013,1759179050939,-480.0,0.00022797,2]
[388463014,1759179050950,-526.13,0.00022797,2]
[388463015,1759179050959,-480.0,0.00022797,2]
[388463016,1759179050969,-480.0,0.00022797,2]
[388463017,1759179050979,-480.0,0.00022797,2]
[388463018,1759179050989,-480.0,0.00022797,2]
[388463019,1759179050998,-480.0,0.00022797,2]
[388463020,1759179051007,-480.0,0.00022797,2]
[388463021,1759179051017,-599.83451735,0.00022797,2]
[388463022,1759179051027,-480.0,0.00022797,2]
[388463023,1759179051036,-480.0,0.00022797,2]
[388463024,1759179051046,-480.0,0.00022797,2]
[388463025,1759179051056,-480.0,0.00022797,2]
[388463026,1759179051065,-480.0,0.00022797,2]
[388463027,1759179051074,-1083.22,0.00022797,2]
[388463028,1759179051083,-480.0,0.00022797,2]
[388463029,1759179051091,-1048.0,0.00022797,2]
[388463030,1759179051101,-480.0,0.00022797,2]
[388463031,1759179051110,-480.0,0.00022797,2]
[388463032,1759179051118,-480.0,0.00022797,2]
[388463033,1759179051127,-480.0,0.00022797,2]
[388463034,1759179051136,-480.0,0.00022797,2]
[388463035,1759179051146,-1056.05,0.00022797,2]
[388463036,1759179051155,-766.76,0.00022797,2]
[388463037,1759179051163,-1966.72,0.00022797,2]
[388463038,1759179051172,-480.0,0.00022797,2]
[388463039,1759179051181,-480.0,0.00022797,2]
[388463040,1759179051190,-731.08,0.00022797,2]
[388463041,1759179051199,-480.0,0.00022797,2]
[388463042,1759179051209,-758.97,0.00022797,2]
[388463043,1759179051218,-561.85,0.00022797,2]
[388463044,1759179051227,-480.0,0.00022797,2]
[388463045,1759179051236,-895.39,0.00022797,2]
[388463046,1759179051245,-583.63,0.00022797,2]
[388463047,1759179051254,-480.0,0.00022797,2]
[388463048,1759179051262,-480.0,0.00022797,2]
[388463049,1759179051271,-724.49,0.00022797,2]
[388463050,1759179051280,-480.0,0.00022797,2]
[388463051,1759179051290,-480.0,0.00022797,2]
[388463052,1759179051300,-944.07,0.00022797,2]
[388463053,1759179051309,-480.0,0.00022797,2]
[388463054,1759179051319,-609.39,0.00022797,2]
[388463055,1759179051328,-480.0,0.00022797,2]
[388463056,1759179051338,-1516.48,0.00022797,2]
[388463057,1759179051347,-480.0,0.00022797,2]
[388463058,1759179051357,-480.0,0.00022797,2]
[388463059,1759179051367,-480.0,0.00022797,2]
[388463060,1759179051376,-609.59,0.00022797,2]
[388463061,1759179051386,-480.0,0.00022797,2]
[388463062,1759179051395,-480.0,0.00022797,2]
[388463063,1759179051405,-224.17328258,0.00022797,2]
[388463064,1759179051414,-480.0,0.00022797,2]
[388463065,1759179051423,-480.0,0.00022797,2]
[388463066,1759179051433,-480.0,0.00022797,2]
[388463067,1759179051442,-480.0,0.00022797,2]
[388463068,1759179051451,-480.0,0.00022797,2]
[388463069,1759179051461,-480.0,0.00022797,2]
[388463070,1759179051470,-480.0,0.00022797,2]
[388463071,1759179051480,-537.09,0.00022797,2]
[388463072,1759179051494,-480.0,0.00022797,2]
[388463073,1759179051504,-480.0,0.00022797,2]
[388463074,1759179051513,-480.0,0.00022797,2]
[388463075,1759179051522,-480.0,0.00022797,2]
[388463076,1759179051531,-480.0,0.00022797,2]
[388463077,1759179051541,-480.0,0.00022797,2]
[388463078,1759179051550,-724.23,0.00022797,2]
[388463079,1759179051559,-480.0,0.00022797,2]
[388463080,1759179051568,-480.0,0.00022797,2]
[388463081,1759179051578,-480.0,0.00022797,2]
[388463082,1759179051587,-480.0,0.00022797,2]
[388463083,1759179051596,-480.0,0.00022797,2]
[388463084,1759179051606,-480.0,0.00022797,2]
[388463085,1759179051615,-722.74,0.00022797,2]
[388463086,1759179051624,-480.0,0.00022797,2]
[388463087,1759179051633,-599.3,0.00022797,2]
[388463088,1759179051642,-480.0,0.00022797,2]
[388463089,1759179051652,-529.03,0.00022797,2]
[388463090,1759179051661,-480.0,0.00022797,2]
[388463091,1759179051670,-480.0,0.00022797,2]
[388463092,1759179051679,-751.71,0.00022797,2]
[388463093,1759179051688,-586.65,0.00022797,2]
[388463094,1759179051699,-480.0,0.00022797,2]
[388463095,1759179051708,-480.0,0.00022797,2]
[388463096,1759179051719,-1728.07,0.00022797,2]
[388463097,1759179051730,-480.0,0.00022797,2]
[388463098,1759179051739,-480.0,0.00022797,2]
[388463099,1759179051749,-480.0,0.00022797,2]
[388463100,1759179051758,-480.0,0.00022797,2]
[388463101,1759179051767,-584.92,0.00022797,2]
[388463102,1759179051776,-1315.41,0.00022797,2]
[388463103,1759179051785,-480.0,0.00022797,2]
[388463104,1759179051795,-480.0,0.00022797,2]
[388463105,1759179051804,-480.0,0.00022797,2]
[388463106,1759179051814,-841.12,0.00022797,2]
[388463107,1759179051823,-848.91,0.00022797,2]
[388463108,1759179051832,-480.0,0.00022797,2]
[388463109,1759179051842,-480.0,0.00022797,2]
[388463110,1759179051851,-480.0,0.00022797,2]
[388463111,1759179051860,-1030.93,0.00022797,2]
[388463112,1759179051869,-480.0,0.00022797,2]
[388463113,1759179051878,-480.0,0.00022797,2]
[388463114,1759179051888,-480.0,0.00022797,2]
[388463115,1759179051900,-916.28,0.00022797,2]